Cogmind - Beta 15 @@@ ROGUE MODE // 2025.08.08 @ 23:36:52 Player: Naughtyusername Result: Destroyed by Piercing Trap Performance ------------- Evolutions (0) 0 Regions Visited (2) 400 Robots Destroyed (23) 115 Value Destroyed (468) 468 Prototype IDs (1) 20 Alien Tech Used (0) 0 Bonus (-29) -29 TOTAL SCORE: 974 Bonus ------- Friendly Fire -29 Cogmind --------- Core Integrity 0/250 Matter 280/300 Energy 168/170 System Corruption 0% Temperature Cool (0) Movement Rolling (140) Ox4 Location -10/Subcaves Parts ------- > --- POWER (1) -------- Makeshift Power Source > --- PROPULSION (2) --- Wheel Wheel > --- UTILITY (2) ------ Huge Storage Unit Structural Scanner > --- WEAPON (2) ------- Heavy Assault Rifle Mining Laser > --- INVENTORY (25) --- Light Ion Engine Improved Treads Subdweller Monowheel Light Armor Plating Heavy Assault Rifle Heavy Assault Rifle Heavy Assault Rifle Grenade Launcher Subdweller Shrapnel Launcher SUBCON Basin (Full) Peak State ------------ > --- POWER ------------ Makeshift Power Source > --- PROPULSION ------- Compact Wheel Subdweller Monowheel > --- UTILITY ---------- Huge Storage Unit Structural Scanner > --- WEAPON ----------- Heavy Assault Rifle Heavy Assault Rifle > --- INVENTORY -------- Light Ion Engine Wheel Wheel Wheel Light Armor Plating Heavy Assault Rifle Heavy Assault Rifle Grenade Launcher Subdweller Shrapnel Launcher Mining Laser SUBCON Basin [Rating: 32] Favorites ----------- Power Makeshift Power Source Engine Makeshift Power Source Propulsion Wheel Treads Improved Treads Leg Aluminum Leg Wheel Wheel Utility Huge Storage Unit Device Structural Scanner Storage Huge Storage Unit Protection Light Armor Plating Weapon Heavy Assault Rifle Energy Gun EM Shotgun Energy Cannon Advanced Beam Cannon Ballistic Gun Heavy Assault Rifle Ballistic Cannon Battle Cannon Launcher Grenade Launcher Special Weapon Mining Laser Build | -11 -10 -10 ------- Run | Yrd Mat Sub Slots Evolved . | . . . Power . | . . . Propulsion . | . . . Utility . | . . . Weapon . | . . . Parts Attached 35 | 3 12 20 Power 4 | . 1 3 Engine 4 | . 1 3 Core . | . . . Reactor . | . . . Propulsion 12 | . 4 8 Treads 3 | . . 3 Leg . | . . . Wheel 9 | . 4 5 Hover . | . . . Flight . | . . . Utility 6 | 2 3 1 Device 3 | 2 1 . Storage 2 | . 2 . Processor . | . . . Hackware . | . . . Protection 1 | . . 1 Artifact . | . . . Weapon 13 | 1 4 8 Energy Gun 3 | 1 . 2 Energy Cannon 1 | . 1 . Ballistic Gun 4 | . 2 2 Ballistic Cannon 1 | . . 1 Launcher 3 | . 1 2 Special Weapon 1 | . . 1 Impact Weapon . | . . . Slashing Weapon . | . . . Piercing Weapon . | . . . Special Melee Weapon . | . . . Unidentified Prototypes 1 | . 1 . Parts Lost 8 | . 2 6 Power 2 | . . 2 Propulsion 3 | . . 3 Utility 1 | . 1 . Weapon 2 | . 1 1 Highest Loss Streak 2 | . 2 2 To Critical Strikes . | . . . Average Backups 19 | 6 17 21 Power . | 1 1 . Propulsion 9 | 3 7 11 Utility 2 | . 2 1 Weapon 6 | 1 6 7 Tool/Special . | . . . Unused Backups 12 | . 4 8 Power 1 | . . 1 Propulsion 5 | . . 5 Utility 2 | . 2 . Weapon 4 | . 2 2 Tool/Special . | . . . Average Slot Usage (%) 96 | . 91 98 Engine 13 | . 14 13 Wheel 26 | . 27 26 Device 12 | . 11 13 Storage 14 | . 14 14 Energy Gun 5 | . 7 5 Ballistic Gun 17 | . 14 18 Special Weapon 1 | . . 1 Peak Build Rating 32 | 7 12 32 Average Rating 14 | 6 8 17 On Entrance 8 | 6 7 12 Naked Turns . | . . . Heaviest Build 93 | 13 92 93 Greatest Support 36 | 20 20 36 Greatest Overweight (x) 9 | . 4 9 Average Overweight (x) 3 | . 3 2 Largest Inventory Capacity 25 | 8 25 25 Average Capacity 24 | 8 24 25 Most Carried 25 | 8 24 25 Average Carried 21 | 6 17 24 Final Capacity 25 | 8 25 25 Final Carried 24 | 7 24 24 Class Distribution -------------------- 100% | Mutant Dominant Class ---------------- Mutant | -10/Materials Mutant | -10/Subcaves Resources | -11 -10 -10 ----------- Run | Yrd Mat Sub Matter Collected 882 | 235 . 647 Remotely 25 | 25 . . Salvage Created 471 | 79 108 284 Parts 38 | 6 15 17 Haulers Intercepted . | . . . Recyclers Shooed . | . . . Parts Field Recycled . | . . . Retrieved Matter . | . . . Parts Self-Destructed 3 | . . 3 Prevented . | . . . Kills | -11 -10 -10 ------- Run | Yrd Mat Sub Combat Hostiles Destroyed 17 | . 9 8 Guns 5 | . . 5 Cannons 1 | . . 1 AOE 10 | . 9 1 Classes Destroyed 6 | 2 3 1 Builder 1 | . 1 . Tunneler 3 | 1 2 . Recycler 1 | 1 . . Watcher 1 | . 1 . Swarmer 9 | . 9 . Subdweller 8 | . . 8 Best Kill Streak 13 | 2 13 2 Combat Bots Only 9 | . 9 2 Max Kills in Single Turn 4 | 1 4 1 Gunslinging . | . . . Exploded 2 | . 2 1 Melee . | . . . Uniques/NPCs Destroyed . | . . . Combat | -11 -10 -10 -------- Run | Yrd Mat Sub Hostile Shots Fired 76 | . 34 42 Missed 23 | . 11 12 Hits 53 | . 23 30 Projectile 53 | . 23 30 Critical Strikes 1 | . . 1 Damage Taken 1194 | . 333 861 Core 252 | . 64 188 Absorbed by Shields . | . . . Core Remaining (%) 100 | 100 . . Volleys Fired 60 | 5 8 47 Largest 2 | 2 2 2 Hottest 100 | 60 60 100 Shots Fired 83 | 10 9 64 Gun 47 | 10 2 35 Cannon 2 | . . 2 Launcher 17 | . 7 10 Special 17 | . . 17 Kinetic 30 | 5 1 24 Thermal 23 | 5 1 17 Explosive 17 | . 7 10 Electromagnetic 13 | . . 13 Robot Hit Streak 12 | 2 4 12 Robot Miss Streak 2 | 1 1 2 Penetration Max . | . . . Secondary Targets . | . . . Shots Hit Robots 48 | 6 4 38 Core Hits 30 | 3 14 13 Critical Kills . | . . . Critical Parts Destroyed . | . . . Critical Strikes 1 | . . 1 Destroy 1 | . . 1 Melee Attacks . | . . . Impact . | . . . Slashing . | . . . Piercing . | . . . Sneak Attacks . | . . . Combat Hostiles . | . . . Follow-up Attacks . | . . . Damage Inflicted 1496 | 60 573 863 Guns 523 | 60 . 463 Cannons 37 | . . 37 Explosions 936 | . 573 363 Melee . | . . . Ramming . | . . . Kinetic 343 | 16 . 327 Thermal 44 | 44 . . Explosive 936 | . 573 363 Electromagnetic 173 | . . 173 Impact . | . . . Slashing . | . . . Piercing . | . . . Highest Corruption . | . . . Average Corruption . | . . . Corruption Purged . | . . . Corruption Blocked . | . . . Overload Shots . | . . . Overflow Damage 52 | . 52 . Projectiles . | . . . Explosions 52 | . 52 . Melee . | . . . Knockbacks . | . . . Impact . | . . . Kinetic . | . . . Secondary . | . . . Self-Inflicted Damage 173 | . 153 20 Shots 8 | . 6 2 Rammed . | . . . Targets Rammed . | . . . Kicked . | . . . Crushed . | . . . Highest Temperature 20 | 20 20 . Average Temperature 14 | 13 15 . Received Heat Transfer 66 | . . 66 Siege Activations . | . . . Martial Activations . | . . . Shielding Activations . | . . . Robots Disrupted . | . . . Combat Hostiles . | . . . Robots Corrupted 1 | . . 1 Combat Hostiles 1 | . . 1 Parts Fried 3 | . . 3 Impact Corruptions . | . . . Robots Melted . | . . . Combat Hostiles . | . . . Parts Melted . | . . . Heat Transferred 100 | 100 . . Parts Sabotaged . | . . . Parts Stolen . | . . . Parts Stripped . | . . . Power Chain Reactions . | . . . Alert | -11 -10 -10 ------- Run | Yrd Mat Sub Maximum Alert Level 1 | . 1 . Low Security (%) 84 | 100 82 . Level 1 15 | . 17 . Level 2 . | . . . Level 3 . | . . . Level 4 . | . . . Level 5 . | . . . High Security . | . . . Max Security . | . . . Peak Influence 237 | 5 237 . Initial . | . . . Average 78 | 1 87 . Influence Increases 293 | 10 283 . Destroy 0b10 Robot/C 180 | . 180 . Destroy 0b10 Robot/NC 30 | 10 20 . Destroy Leader 32 | . 32 . Successful Hack 6 | . 6 . Disable Machine 15 | . 15 . Destroy Structure 30 | . 30 . Influence Decreases 293 | 10 128 155 Entered New Map 75 | . . 75 Time Decay 178 | 10 108 60 Lost Part 40 | . 20 20 Squads Dispatched . | . . . Investigation . | . . . Extermination . | . . . Reinforcement . | . . . Assault . | . . . Garrison . | . . . Intercept . | . . . Searches Triggered . | . . . Construction Impeded . | . . . Haulers Reinforced . | . . . Active Scanning Responses . | . . . Cargo Convoy Interrupts . | . . . Stealth | -11 -10 -10 --------- Run | Yrd Mat Sub Distress Signals . | . . . Communications Jammed . | . . . Distress Signals . | . . . Times Spotted 18 | . 10 8 Peak Tracking Total 6 | . 6 2 Tactical Retreats . | . . . Traps | -11 -10 -10 ------- Run | Yrd Mat Sub Traps Triggered 7 | . 2 5 Indirectly . | . . . Trap Hack Attempts . | . . . Triggered . | . . . Disarmed . | . . . Reprogrammed . | . . . Reused . | . . . Traps Extracted . | . . . Installed . | . . . Triggered . | . . . Machines | -11 -10 -10 ---------- Run | Yrd Mat Sub Machines Disabled 1 | . 1 . Max in Single Turn 1 | . 1 . Machines Repaired . | . . . Machines Dismantled . | . . . Machines Sabotaged . | . . . Overloaded Fab Kills . | . . . Hacking | -11 -10 -10 --------- Run | Yrd Mat Sub Machines Accessed 6 | . 3 3 Terminals 3 | . 3 . Fabricators . | . . . Repair Stations . | . . . Recycling Units . | . . . Scanalyzers . | . . . Garrison Access . | . . . Total Hacks 13 | . 7 6 Successful 9 | . 3 6 Failed 4 | . 4 . Catastrophic . | . . . Database Lockouts . | . . . Manual 4 | . 4 . Terminals 7 | . 7 . Fabricators . | . . . Repair Stations . | . . . Recycling Units . | . . . Scanalyzers . | . . . Garrison Access . | . . . Terminal Hacks 7 | . 1 6 Record 4 | . . 4 Open Door 1 | . . 1 Branch Access Points 1 | . 1 . Release Object 1 | . . 1 Fabricator Hacks . | . . . Repair Station Hacks . | . . . Recycling Unit Hacks . | . . . Scanalyzer . | . . . Garrison Access Hacks . | . . . Unauthorized Hacks 2 | . 2 . Terminals 2 | . 2 . Botnet 2 | . 2 . Fabricators . | . . . Repair Stations . | . . . Recycling Units . | . . . Scanalyzers . | . . . Garrison Access . | . . . Data Cores Recovered . | . . . Used . | . . . Hacking Detections 3 | . 3 . Full Trace Events . | . . . Feedback Events . | . . . Feedback Blocked . | . . . Robot Schematics Acquired . | . . . Robots Built . | . . . Authchips . | . . . Time . | . . . Total Robot Build Rating . | . . . Part Schematics Acquired . | . . . Parts Built . | . . . Authchips . | . . . Time . | . . . Total Part Build Rating . | . . . Parts Repaired . | . . . Time . | . . . Parts Recycled . | . . . Recycled Matter . | . . . Retrieved Matter . | . . . Retrieved Components . | . . . Parts Scanalyzed . | . . . Part Schematics Acquired . | . . . Parts Damaged . | . . . Bothacking | -11 -10 -10 ------------ Run | Yrd Mat Sub Used RIF Installer . | . . . Robots Hacked . | . . . Non-combat . | . . . Combat . | . . . Robot Hacks Applied . | . . . Relay Couplers Released . | . . . Fabnet Peak Effective % . | . . . Robots Rewired . | . . . Allies Hacked . | . . . Hacks Repelled . | . . . Allies | -11 -10 -10 -------- Run | Yrd Mat Sub Total Allies . | . . . Largest Group . | . . . Highest-Rated Group . | . . . Highest-Rated Ally . | . . . Total Orders . | . . . Ally Attacks . | . . . Total Damage . | . . . Kills . | . . . Allies Corrupted . | . . . Allies Melted . | . . . Intel | -11 -10 -10 ------- Run | Yrd Mat Sub Active Infowar (turns) 1511 | 13 396 1102 Structural 1221 | . 119 1102 Seismic 290 | 13 277 . Robot Analysis Total . | . . . Derelict Logs Recovered 1 | . . 1 Drone Launches . | . . . Drone Recoveries . | . . . Exploration | -11 -10 -10 ------------- Run | Yrd Mat Sub Turns Passed 1685 | 60 479 1146 Spaces Moved 1033 | 32 295 706 Core . | . . . Treads . | . . . Legs 37 | 32 5 . Wheels 996 | . 290 706 Hover . | . . . Flight . | . . . Fastest Speed 80 | 120 80 119 Average Speed 132 | 120 139 130 Slowest Speed 215 | 120 140 215 Overloaded Moves . | . . . Propulsion Burnouts . | . . . Robots Hopped . | . . . Potential Cave-ins . | . . . Cave-ins Triggered . | . . . Exploration Rate (%) 25 | 3 35 39 Regions Visited 2 Branch Regions 1 Pre-discovered Areas . | . . . Known Exits Taken . | . . . Unknown Exits Taken 2 | 1 1 . Scrap Searched 4 | . . 4 Spaces Dug 16 | . 16 . Terrain Destroyed 76 | . 38 38 Melee . | . . . Projectile . | . . . AOE 76 | . 38 38 Terrain Rammed . | . . . Walls Destroyed . | . . . Machines Disabled . | . . . Actions | -11 -10 -10 --------- Run | Yrd Mat Sub Total 1228 | 45 355 828 Wait 18 | . . 18 Move 1031 | 31 294 706 Hop . | . . . Pick Up 34 | 2 24 8 Fast Attach 11 | 2 6 3 Attach 11 | 1 6 4 Detach 7 | 2 5 . Swap 26 | . 4 22 Drop 30 | 2 8 20 Fire 60 | 5 8 47 Melee . | . . . Ram . | . . . Kick . | . . . Crush . | . . . Escape Stasis . | . . . Rewire . | . . . Trap . | . . . Miscellaneous . | . . . Route ------- -11/Scrapyard -10/Materials (discovered 4 exits: [*Mat] / Min x2 / *Sub) -10/Subcaves (discovered 1 exit: Rec) History --------- Turn | Location | Event 1 | -11/Scrapyard | Discovered new exit (range 3) 61 | -11/Scrapyard | Entered Materials 208 | -10/Materials | Identified exit to Mines 336 | -10/Materials | Discovered new exit (range 8) 361 | -10/Materials | Destroyed 9 combat bots 363 | -10/Materials | Build established: Mutant 379 | -10/Materials | Discovered new exit (range 10) 540 | -10/Materials | Entered Subcaves 541 | -10/Subcaves | Approached by a straggling Scientist 662 | -10/Subcaves | Shifting Twisted Machinery released Sub. Monowheel 729 | -10/Subcaves | A swath of the cavern ceiling suddenly collapsed 839 | -10/Subcaves | Disturbed a concealed Subdweller 1001 | -10/Subcaves | Core integrity fell below 50% 1312 | -10/Subcaves | Visited Clippyterm 1315 | -10/Subcaves | Learned Factory emergency access door positions 1460 | -10/Subcaves | Identified exit to Recycling 1479 | -10/Subcaves | Found SUBCON Basin 1541 | -10/Subcaves | Core integrity fell below 20% 1686 | -10/Subcaves | Destroyed by Piercing Trap Last Messages --------------- 01540_ An expanding cloud of shrapnel blasts out in all directions. 01559_ Triggered Piercing Trap. 01559_ Spikes shoot up from the floor. 01559_ Critical hit (Impale). 01579_ Com. Wheel destroyed. 01594_ Z2-AVL(R) destroyed. 01601_ Acquired 57 matter. 01604_ Acquired Sub. Monowheel. 01623_ Acquired 10 matter. 01668_ Triggered Shrapnel Trap. 01668_ An expanding cloud of shrapnel blasts out in all directions. 01668_ Wheel destroyed. 01673_ Triggered Piercing Trap. 01673_ Spikes shoot up from the floor. 01673_ Critical hit (Impale). 01686_ Triggered Piercing Trap. 01686_ Spikes shoot up from the floor. 01686_ Critical hit (Impale). Map ----- +----------------------------------------------------+ | ?????### ######### ### | | ?????### ### #### #### | | ????#### #### ## ### # | | ????### ##### ##### ## | | ????## ####### ## ###### ### | | ????#### ####### ## ## ###### ### | | ??###### ###?## ##### ##? | | ######## ###### ##?### ##? | | #### ###### ##?#### ##? | | ## ## ###??#### ##? | | # ### ###???######? | | ### #### ##?????#####? | | ###### #### ## ###??????????? | | ###### #### ###### ###??????????? | | ##### ### ###### ##???????????? | | # ### ### ## ####"" ###???????????? | | # #### ## ###" "######???????????? | | ## ##? # ####" "#####????????????? | | ## ##?### ###" " ##??????????????? | | #### ###?### ###" " ##??????????????? | | # # ###?### ##" "###??????????????? | | " ## ###??### ## ######???????????? | | ""#"" ## ####?## #### #######??????????? | | ###""#" "##?### ###^ ###########??? | | ###"""## ="""##?#### "##### ############# | | #"" """" ####### @ ;;;;;## ## # # ##### | | ?? # """" "?""#### #^ ;;# ] | | # ### "" "?""" #" ## ## &%[ | | #%" ### " """ "" #; ^ ## # ## | | ### ### ### """" "" ###;;;;; ########## | | "######## #########" "" ## ################## | | %#"##?########?##### "" ################???????? | | "#"##???####?????###"" #########???????????????? | | #"###?????????????#### ###?????????????????????? | | ""###?????????????##### ##?????????????????????? | | #"###???????????????##### ##?????????????????????? | | ""###????????????????#### ##?????????????????????? | | "####??????????????????## ##?????????????????????? | | #####??????????????????## ##?????????????????????? | | ####??????????????????? # ###????????????????????? | | #########??????????????## ###????????????????????? | | #########??????????????### ##????????????????????? | | ] ##??????????????### ##????????????????????? | | &#### ##???????????????## ##????????????????????? | | #&""## ##?????????####??## ##????????????????????? | | # *"# ##????????#####??## ##????????????????????? | | #"[!"# ##????????### ##### ###???????????????????? | | ##""## ##????????## ##### ###???????????????????? | | #### ##????????## ### ##???????????????????? | | ###????????### ### ###???????????????????? | +----------------------------------------------------+ Best States ------------- Heat Dissipation 25 Energy Generation 15 Energy Capacity 250 Matter Stores 300 Matter Capacity 300 Sight Range 16 Terrain Scan Density 10 Armor Coverage 150 Evasion (%) 55 Recoil Reduction 2 Item Schematics ----------------- None Robot Schematics ------------------ None Fabricated ------------ Nothing Repaired ---------- Nothing Alien Tech Used ----------------- None Achievements -------------- None Challenges ------------ None Game ------ Seed AlphaActuatorExpander Manual? 0 Play Time 00:16:59 Cumulative 56.5 hours Start 2025.08.08 @ 23:17:00 End 2025.08.08 @ 23:36:52 Sessions 1 Manual Loads 0 Difficulty Rogue Special Mode None Game No. 17 Rogue 17 Adventurer 0 Explorer 0 Win Type - Total 1 Types 0/0/1/0/0/0/0/0/0/0 Lore% 51 Gallery% 45 Achievement% 72 Wizard Run 0 Options --------- Layout 2 ASCII 0 Keyboard 1 Movement Vi Keybinds 0 Fullscreen 1 Font 28/SwanstonBold Map View 50x52 Zoom Use 0% Tactical HUD 1 Map Filters NONE Filters NONE Steam 1 RUN: d77c9686-db96-47dc-b2cb-6ffaa08d7eda